bitfinex-derivatives/quotes_BTCF0:USTF0_20250130
["timestamp","ask_amount","ask_price","bid_price","bid_amount"]
[1738238341819,0.77494916,105390.0,105380.0,0.0001426]
[1738238342205,0.74986916,105390.0,105380.0,0.0001426]
[1738238342518,0.64476358,105390.0,105380.0,0.0001426]
[1738238342714,0.64476358,105390.0,105380.0,0.0941426]
[1738238344418,0.61968358,105390.0,105380.0,0.0941426]
[1738238344624,0.64476358,105390.0,105380.0,0.0941426]
[1738238345819,0.61968358,105390.0,105380.0,0.2839596]
[1738238346013,0.64476358,105390.0,105380.0,0.2839596]
[1738238346623,0.61968358,105390.0,105380.0,0.2839596]
[1738238347025,0.64476358,105390.0,105380.0,0.2839596]
[1738238347328,0.61968358,105390.0,105380.0,0.2839596]
[1738238347513,0.28396358,105390.0,105380.0,0.28538296]
[1738238349116,0.25888358,105390.0,105380.0,0.28538296]
[1738238350325,0.25888358,105390.0,105380.0,0.29469131]
[1738238351928,0.190798,105390.0,105380.0,0.72357689]
[1738238352119,0.42888358,105390.0,105380.0,0.65549131]
[1738238354923,0.25888358,105390.0,105380.0,0.65549131]
[1738238355133,0.190798,105390.0,105380.0,0.72357689]
[1738238355424,0.25888358,105390.0,105380.0,0.72357689]
[1738238355626,0.190798,105390.0,105380.0,0.72357689]
[1738238361633,0.360798,105390.0,105380.0,0.72357689]
[1738238362032,0.171,105390.0,105380.0,0.79166247]
[1738238372645,0.171,105390.0,105380.0,0.81670247]
[1738238373547,0.190799,105390.0,105380.0,0.69337689]
[1738238376145,0.190799,105390.0,105380.0,0.76146247]
[1738238377047,0.190799,105390.0,105380.0,0.69337689]
[1738238382147,0.25888458,105390.0,105380.0,0.56149131]
[1738238382343,0.190799,105390.0,105380.0,0.62957689]
[1738238383836,0.190799,105390.0,105380.0,0.56149131]
[1738238384036,0.25888458,105390.0,105380.0,0.56149131]
[1738238386555,0.25888458,105390.0,105380.0,0.20069131]
[1738238392153,0.61968458,105390.0,105380.0,0.01087431]
[1738238393058,0.61968458,105390.0,105380.0,0.00945095]
[1738238393959,0.68777016,105390.0,105380.0,0.00945095]
[1738238394168,0.61968458,105390.0,105380.0,0.00945095]
[1738238398961,0.68777016,105390.0,105380.0,0.00945095]
[1738238399362,0.61968458,105390.0,105380.0,0.00945095]
[1738238400249,0.61968458,105390.0,105380.0,0.0001426]
[1738238400650,0.28392458,105390.0,105380.0,0.0001426]
[1738238401059,0.45392458,105390.0,105380.0,0.0001426]
[1738238401458,0.81472458,105390.0,105380.0,0.0001426]
[1738238402954,0.45392458,105390.0,105380.0,0.0001426]
[1738238403153,0.360799,105390.0,105380.0,0.61884518]
[1738238403355,0.001,105390.0,105380.0,0.61884518]
[1738238403556,0.001,105390.0,105380.0,0.68693076]
[1738238403757,0.001,105390.0,105380.0,0.61884518]
[1738238404060,0.25888458,105390.0,105380.0,0.1899596]
[1738238405048,0.25888458,105390.0,105380.0,0.25804518]
[1738238405461,0.25888458,105390.0,105380.0,0.1899596]
[1738238405854,0.25888458,105390.0,105380.0,0.25804518]
[1738238406256,0.190799,105390.0,105380.0,0.25804518]
[1738238406462,0.25888458,105390.0,105380.0,0.1899596]
[1738238406963,0.190799,105390.0,105380.0,0.25804518]
[1738238407858,0.25888458,105390.0,105380.0,0.1899596]
[1738238410157,0.25888458,105390.0,105380.0,0.25804518]
[1738238410364,0.190799,105390.0,105380.0,0.25804518]
[1738238410763,0.190799,105390.0,105380.0,0.61884518]
[1738238411164,0.25888458,105390.0,105380.0,0.5507596]
[1738238411966,0.25888458,105390.0,105380.0,0.61884518]
[1738238412165,0.190799,105390.0,105380.0,0.61884518]
[1738238413361,0.25888458,105390.0,105380.0,0.5507596]
[1738238415170,0.25888458,105390.0,105380.0,0.3609426]
[1738238415462,0.35201016,105390.0,105380.0,0.0001426]
[1738238415669,0.71281016,105390.0,105380.0,0.0001426]
[1738238418463,0.64472458,105390.0,105380.0,0.0001426]
[1738238418666,0.71281016,105390.0,105380.0,0.0001426]
[1738238427675,0.72216472,105390.0,105380.0,0.0001426]
[1738238428377,0.53236572,105390.0,105360.0,0.00944497]
[1738238428684,0.189852,105360.0,105350.0,0.0933]
[1738238428879,0.68682316,105360.0,105350.0,0.0315]
[1738238430484,0.68682316,105360.0,105350.0,0.0355]
[1738238431191,0.68782316,105360.0,105350.0,0.0355]
[1738238431985,0.75590874,105360.0,105350.0,0.004]
[1738238432188,0.78382316,105360.0,105350.0,0.004]
[1738238432689,0.85190874,105360.0,105350.0,0.004]
[1738238432883,0.78382316,105360.0,105350.0,0.004]
[1738238433090,0.85190874,105360.0,105350.0,0.004]
[1738238433285,0.78382316,105360.0,105350.0,0.004]
[1738238433484,0.85190874,105360.0,105350.0,0.004]
[1738238433790,0.78382316,105360.0,105350.0,0.004]
[1738238434293,0.18987,105350.0,105340.0,0.0001426]
[1738238434489,0.64379558,105350.0,105340.0,0.0001426]
[1738238434789,0.64383558,105350.0,105340.0,0.0001426]
[1738238435294,0.71192116,105350.0,105340.0,0.0001426]
[1738238435888,0.64483558,105350.0,105340.0,0.0001426]
[1738238436395,0.64483558,105350.0,105340.0,0.0031426]
[1738238437884,0.28403558,105350.0,105340.0,0.3639426]
[1738238438382,0.28403558,105350.0,105340.0,0.5538306]
[1738238438593,0.28403558,105350.0,105340.0,0.3639426]
[1738238439387,0.25895558,105350.0,105340.0,0.3639426]
[1738238439586,0.28403558,105350.0,105340.0,0.3639426]
[1738238440487,0.45403558,105350.0,105340.0,0.3639426]
[1738238441693,0.45403558,105350.0,105340.0,0.0031426]
[1738238445701,0.28403558,105350.0,105340.0,0.0031426]
[1738238446696,0.25895558,105350.0,105340.0,0.0031426]
[1738238446998,0.45399558,105350.0,105340.0,0.3639426]
[1738238452204,0.28399558,105350.0,105340.0,0.3639426]
[1738238453800,0.28399558,105350.0,105340.0,0.0031426]
[1738238457304,0.64479558,105350.0,105340.0,0.0031426]
[1738238457600,0.28399558,105350.0,105340.0,0.0031426]
[1738238460405,0.64479558,105350.0,105340.0,0.0031426]
[1738238462005,0.71288116,105350.0,105340.0,0.0031426]
[1738238462504,0.189924,105320.0,105310.0,0.17220535]
[1738238462698,0.189924,105320.0,105300.0,0.33717573]
[1738238462699,0.189942,105310.0,105300.0,0.32770889]
[1738238462898,0.189942,105310.0,105300.0,0.44156334]
[1738238462899,0.64882758,105310.0,105300.0,0.44156334]
[1738238463105,0.74851316,105310.0,105300.0,0.44156334]
[1738238463505,0.62665674,105310.0,105290.0,0.39849056]
[1738238463698,0.62665674,105310.0,105290.0,0.39863316]
[1738238463699,0.78017674,105300.0,105290.0,0.39863316]
[1738238464702,0.78017674,105300.0,105290.0,0.24700716]
[1738238464905,0.189978,105290.0,105280.0,0.42990396]
[1738238465105,0.68694916,105290.0,105280.0,0.27489496]
[1738238465302,0.71210916,105290.0,105280.0,0.27489496]
[1738238466107,0.61886358,105290.0,105280.0,0.27489496]
[1738238466408,0.001,105290.0,105280.0,0.89377654]
[1738238466609,0.001,105290.0,105280.0,0.646396]
[1738238466905,0.29496284,105290.0,105280.0,0.646396]
[1738238467307,0.65576284,105290.0,105280.0,0.0956]
[1738238467496,0.65576284,105290.0,105280.0,0.0976]
[1738238468010,0.65576284,105290.0,105280.0,0.0328]
[1738238468509,0.65576284,105290.0,105280.0,0.002]
[1738238470001,0.79723934,105290.0,105280.0,0.002]
[1738238470902,1.15803934,105290.0,105280.0,0.002]
[1738238472024,1.16403934,105290.0,105280.0,0.002]
[1738238472902,0.189996,105280.0,105270.0,0.00156709]
[1738238473114,0.68006084,105280.0,105270.0,0.00156709]
[1738238474215,0.68106084,105280.0,105270.0,0.0001426]
[1738238475515,0.68206084,105280.0,105270.0,0.0001426]
[1738238476702,0.578036,105280.0,105270.0,0.0001426]
[1738238477411,0.68202084,105280.0,105270.0,0.0001426]
[1738238477606,0.65678084,105280.0,105270.0,0.0001426]
[1738238477808,0.68202084,105280.0,105270.0,0.0001426]
[1738238478213,0.552796,105280.0,105270.0,0.0001426]
[1738238478419,0.577996,105280.0,105270.0,0.1901566]
[1738238479010,0.577996,105280.0,105270.0,0.0001426]
[1738238479216,0.68198084,105280.0,105270.0,0.0001426]
[1738238481010,0.577996,105280.0,105270.0,0.0001426]
[1738238482410,0.577956,105280.0,105270.0,0.1901566]
[1738238482723,0.217196,105280.0,105270.0,0.29414144]
[1738238482922,0.191996,105280.0,105270.0,0.29414144]
[1738238483116,0.191996,105280.0,105270.0,0.1901566]
[1738238483422,0.577996,105280.0,105270.0,0.0001426]
[1738238483919,0.217196,105280.0,105270.0,0.0001426]
[1738238484123,0.217196,105280.0,105270.0,0.1901566]
[1738238484420,0.217196,105280.0,105270.0,0.5509566]
[1738238484728,0.217196,105280.0,105270.0,0.1901566]
[1738238486016,0.217236,105280.0,105270.0,0.1901566]
[1738238486617,0.217236,105280.0,105270.0,0.5509566]
[1738238487425,0.191996,105280.0,105270.0,0.5509566]
[1738238487626,0.217236,105280.0,105270.0,0.5509566]
[1738238488030,0.217236,105280.0,105270.0,0.3609426]
[1738238488229,0.217236,105280.0,105270.0,0.0001426]
[1738238488230,0.68202084,105280.0,105270.0,0.0001426]
[1738238490528,0.578036,105280.0,105270.0,0.0001426]
[1738238490730,0.217236,105280.0,105270.0,0.0001426]
[1738238491037,0.578036,105280.0,105270.0,0.0001426]
[1738238491420,0.217236,105280.0,105270.0,0.0001426]
[1738238493325,0.578036,105280.0,105270.0,0.0001426]
[1738238493919,0.68202084,105280.0,105270.0,0.0001426]
[1738238495127,0.74452291,105280.0,105270.0,0.0001426]
[1738238496834,0.77732291,105280.0,105270.0,0.0001426]
[1738238498737,0.78738867,105280.0,105270.0,0.0001426]
[1738238499335,0.7968373,105280.0,105270.0,0.0001426]
[1738238499535,0.8270373,105280.0,105270.0,0.0001426]
[1738238503144,0.8270373,105280.0,105270.0,0.00144476]
[1738238505939,0.95253657,105280.0,105270.0,0.00144476]
[1738238506134,0.190032,105260.0,105250.0,0.032]
[1738238506339,0.68001684,105260.0,105250.0,0.032]
[1738238507339,0.68001684,105260.0,105250.0,0.035]
[1738238507546,0.68101684,105260.0,105250.0,0.035]
[1738238508641,0.65581684,105260.0,105250.0,0.035]
[1738238508845,0.551832,105260.0,105250.0,0.035]
[1738238509046,0.577072,105260.0,105250.0,0.13898484]
[1738238509440,0.577072,105260.0,105250.0,0.035]
[1738238510547,0.747072,105260.0,105250.0,0.035]
[1738238510937,0.721832,105260.0,105250.0,0.035]
[1738238511141,0.386312,105260.0,105250.0,0.32903484]
[1738238511347,0.386312,105260.0,105250.0,0.22505]
[1738238511752,0.386312,105260.0,105250.0,0.58585]
[1738238511947,0.361032,105260.0,105250.0,0.58585]
[1738238512748,0.361032,105260.0,105250.0,0.22505]
[1738238512950,0.361032,105260.0,105250.0,0.58585]
[1738238513255,0.361032,105260.0,105250.0,0.68983484]
[1738238514252,0.361032,105260.0,105250.0,0.58585]
[1738238515047,0.361032,105260.0,105250.0,0.68983484]
[1738238515645,0.191032,105260.0,105250.0,0.68983484]
[1738238516250,0.191032,105260.0,105250.0,0.58585]
[1738238518557,0.191032,105260.0,105250.0,0.59537631]
[1738238521159,0.191032,105260.0,105250.0,0.69936115]
[1738238521959,0.001,105260.0,105250.0,0.69936115]
[1738238522155,0.171,105260.0,105250.0,0.69936115]
[1738238523560,0.48517652,105270.0,105260.0,0.190032]
[1738238523756,0.0939841,105270.0,105260.0,0.74313684]
[1738238525450,0.0939841,105270.0,105260.0,0.74513684]
[1738238526855,0.0949841,105270.0,105260.0,0.74513684]
[1738238527647,0.001,105270.0,105260.0,0.74513684]
[1738238529760,0.001,105270.0,105260.0,0.615832]
[1738238530064,0.191014,105270.0,105260.0,0.615832]
[1738238532163,0.361014,105270.0,105260.0,0.615832]
[1738238533157,0.361014,105270.0,105260.0,0.71981684]
[1738238533760,0.171,105270.0,105260.0,0.71981684]
[1738238533967,0.001,105270.0,105260.0,0.71981684]
[1738238540665,0.171,105270.0,105260.0,0.71981684]
[1738238547669,0.001,105270.0,105260.0,0.82380168]
[1738238547879,0.001,105270.0,105260.0,0.71981684]
[1738238548071,0.001,105270.0,105260.0,0.82380168]
[1738238548869,0.001,105270.0,105260.0,0.7211197]
[1738238549075,0.001,105270.0,105260.0,0.82510454]
[1738238549279,0.001,105270.0,105260.0,0.7211197]
[1738238550477,0.001,105270.0,105260.0,0.82510454]
[1738238550682,0.001,105270.0,105260.0,0.7211197]
[1738238554071,0.0001426,105280.0,105270.0,0.190014]
[1738238554270,0.0001426,105280.0,105270.0,0.81544368]
[1738238554877,0.0001426,105280.0,105270.0,0.81674654]
[1738238555381,0.1711426,105280.0,105270.0,0.81674654]
[1738238556272,0.1711426,105280.0,105270.0,0.7127617]
[1738238560584,0.1711426,105280.0,105270.0,0.7126817]
[1738238561386,0.1711426,105280.0,105270.0,0.72234098]
[1738238565078,0.1711426,105280.0,105270.0,0.69726098]
[1738238565279,0.1711426,105280.0,105270.0,0.72234098]
[1738238566084,0.0011426,105280.0,105270.0,0.72234098]
[1738238567083,0.0011426,105280.0,105270.0,0.73234098]
[1738238570087,0.1711426,105280.0,105270.0,0.73234098]
[1738238571790,0.1711426,105280.0,105270.0,0.72234098]
[1738238575483,0.1711426,105280.0,105270.0,0.69726098]
[1738238575690,0.1711426,105280.0,105270.0,0.72234098]
[1738238578592,0.1711426,105280.0,105270.0,0.68660095]
[1738238580899,0.1711426,105280.0,105270.0,0.66152095]
[1738238581193,0.1711426,105280.0,105270.0,0.68660095]
[1738238581789,0.3611386,105280.0,105270.0,0.59327614]
[1738238581995,0.42938341,105280.0,105270.0,0.20097614]
[1738238582181,0.85842822,105280.0,105270.0,0.01096214]
[1738238582383,0.69351222,105280.0,105260.0,0.1901686]
[1738238582587,0.68245981,105270.0,105260.0,0.0001426]
[1738238583492,0.68245981,105270.0,105260.0,0.0011426]
[1738238583985,0.68245981,105270.0,105260.0,0.0001426]
[1738238584185,0.68345981,105270.0,105260.0,0.0011426]
[1738238584794,0.615215,105270.0,105260.0,0.0011426]
[1738238585194,0.615215,105270.0,105260.0,0.0031426]
[1738238585693,0.645215,105270.0,105260.0,0.0031426]
[1738238586492,0.71498809,105270.0,105260.0,0.0031426]
[1738238586890,0.81904377,105270.0,105260.0,0.0031426]
[1738238587493,0.92309945,105270.0,105260.0,0.0031426]
[1738238590692,0.190069,105240.0,105230.0,0.00142522]
[1738238590898,0.65492468,105240.0,105230.0,0.01090553]
[1738238591195,0.391469,105240.0,105230.0,0.19151222]
[1738238591397,0.391469,105240.0,105230.0,0.2955679]
[1738238591793,0.171,105240.0,105230.0,0.6613679]
[1738238591994,0.0001426,105250.0,105240.0,0.190069]
[1738238592202,0.0001426,105250.0,105240.0,0.84826036]
[1738238592494,0.0001426,105250.0,105240.0,0.74420468]
[1738238592690,0.1901926,105250.0,105240.0,0.74420468]
[1738238593094,0.1901926,105250.0,105240.0,0.71912468]
[1738238593294,0.1901926,105250.0,105240.0,0.615069]
[1738238593692,0.1911926,105250.0,105240.0,0.615069]
[1738238593898,0.3611926,105250.0,105240.0,0.619069]
[1738238594494,0.3611926,105250.0,105240.0,0.72312468]
[1738238599799,0.0011426,105250.0,105240.0,0.72312468]
[1738238600504,0.1711426,105250.0,105240.0,0.72312468]
[1738238600704,0.1711426,105250.0,105240.0,0.82718036]
[1738238601305,0.1711426,105250.0,105240.0,0.72312468]
[1738238601506,0.0011426,105250.0,105240.0,0.82718036]
[1738238601892,0.1711426,105250.0,105240.0,0.82718036]
[1738238602096,0.1711426,105250.0,105240.0,0.72312468]
[1738238602704,0.1711426,105250.0,105240.0,0.82718036]
[1738238603999,0.0011426,105250.0,105240.0,0.82718036]
[1738238606511,0.0011426,105250.0,105240.0,0.75563054]
[1738238610708,0.1711426,105250.0,105240.0,0.75563054]
[1738238610919,0.18778775,105260.0,105250.0,0.19005]
[1738238611114,0.18778775,105260.0,105250.0,0.67615077]
[1738238612314,0.18778775,105260.0,105250.0,0.67915077]
[1738238613516,0.18878775,105260.0,105250.0,0.68015077]
[1738238613717,0.18878775,105260.0,105250.0,0.68011077]
[1738238617102,0.001,105260.0,105250.0,0.68011077]
[1738238618604,0.001,105260.0,105250.0,0.68964741]
[1738238620620,0.191032,105260.0,105250.0,0.66456741]
[1738238620821,0.191032,105260.0,105250.0,0.68968741]
[1738238627626,0.001,105260.0,105250.0,0.68968741]
[1738238629022,0.191032,105260.0,105250.0,0.68968741]
[1738238630821,0.191032,105260.0,105250.0,0.66456741]
[1738238633823,0.191032,105260.0,105250.0,0.63266741]
[1738238636122,0.41839375,105260.0,105250.0,0.63266741]
[1738238637228,0.41839375,105260.0,105250.0,0.27186741]
[1738238638028,0.41839375,105260.0,105250.0,0.63266741]
[1738238638530,0.41839375,105260.0,105250.0,0.66586741]
[1738238639032,0.41839375,105260.0,105250.0,0.59758664]
[1738238641830,0.41839375,105260.0,105250.0,0.66586741]
[1738238643635,0.41839375,105260.0,105250.0,0.11501741]
[1738238643935,0.61789976,105260.0,105250.0,0.11501741]
[1738238644133,0.61789976,105260.0,105250.0,0.30506741]
[1738238644834,0.61789976,105260.0,105250.0,0.30520165]
[1738238645529,0.61789976,105260.0,105250.0,0.23692088]
[1738238646235,0.68618053,105260.0,105250.0,0.01367088]
[1738238646535,0.68618053,105260.0,105250.0,0.20372088]
[1738238646733,0.64297976,105260.0,105250.0,0.01367088]
[1738238648139,0.71126053,105260.0,105250.0,0.01367088]
[1738238649333,1.07206053,105260.0,105250.0,0.00413424]
[1738238649533,1.1403413,105260.0,105250.0,0.00413424]
[1738238651838,1.07206053,105260.0,105250.0,0.00413424]
[1738238652039,1.1403413,105260.0,105250.0,0.00413424]
[1738238652641,0.97869976,105260.0,105250.0,0.07241501]
[1738238652939,0.61789976,105260.0,105250.0,0.26246501]
[1738238653140,0.61789976,105260.0,105250.0,0.29516501]
[1738238653642,0.68618053,105260.0,105250.0,0.29516501]
[1738238653944,0.78326988,105260.0,105250.0,0.29516501]
[1738238654337,0.78326988,105260.0,105250.0,0.22688424]
[1738238654545,0.71498911,105260.0,105250.0,0.22688424]
[1738238654742,0.71498911,105260.0,105250.0,0.58768424]
[1738238655042,0.52495711,105260.0,105250.0,0.6917575]
[1738238657345,0.001,105260.0,105250.0,0.6917575]
[1738238661548,0.191032,105260.0,105250.0,0.58768424]
[1738238661739,0.191032,105260.0,105250.0,0.61276424]
[1738238661946,0.191032,105260.0,105250.0,0.22688424]
[1738238662342,0.29510526,105260.0,105250.0,0.22688424]
[1738238662543,0.191032,105260.0,105250.0,0.22688424]
[1738238676648,0.191032,105260.0,105250.0,0.65597464]
[1738238676856,0.191032,105260.0,105250.0,0.29517464]
[1738238677553,0.191032,105260.0,105250.0,0.65597464]
[1738238677751,0.61823645,105260.0,105250.0,0.65597464]
[1738238680059,0.61823645,105260.0,105250.0,0.62327464]
[1738238680455,0.61823645,105260.0,105250.0,0.26247464]
[1738238681352,0.39053801,105260.0,105250.0,0.26247464]
[1738238685465,0.39053801,105260.0,105250.0,0.19418424]
[1738238686255,0.39053801,105260.0,105250.0,0.26247464]
[1738238687372,0.39053801,105260.0,105250.0,0.19418424]
[1738238689763,0.45882841,105260.0,105250.0,0.19418424]
[1738238693672,0.88791881,105260.0,105250.0,0.00413424]
[1738238693971,0.81962841,105260.0,105250.0,0.00413424]
[1738238694176,0.88791881,105260.0,105250.0,0.00413424]
[1738238694657,0.88891881,105260.0,105250.0,0.00113424]
[1738238695370,0.91981881,105260.0,105250.0,0.00113424]
[1738238695764,1.24326991,105260.0,105250.0,0.00013424]
[1738238698284,1.17497951,105260.0,105250.0,0.00013424]
[1738238699262,1.24326991,105260.0,105250.0,0.00013424]
[1738238699572,1.47096835,105260.0,105250.0,0.00013424]
[1738238700165,1.40267795,105260.0,105250.0,0.00013424]
[1738238701477,1.47096835,105260.0,105250.0,0.00013424]
[1738238702881,1.3276415,105260.0,105250.0,0.00013424]
[1738238705780,1.2578481,105260.0,105250.0,0.00013424]
[1738238708383,1.63990686,105260.0,105250.0,0.00013424]
[1738238710875,1.86747606,105260.0,105250.0,0.00013424]
[1738238711285,1.79918566,105260.0,105250.0,0.00013424]
[1738238711885,1.86747606,105260.0,105250.0,0.00013424]
[1738238713894,1.76828566,105260.0,105250.0,0.00013424]
[1738238714087,1.69849226,105260.0,105250.0,0.00013424]
[1738238719910,0.19005,105250.0,105240.0,0.2873096]
[1738238720111,0.55085,105250.0,105240.0,0.2873096]
[1738238721208,0.6191404,105250.0,105240.0,0.2883096]
[1738238721806,0.6201404,105250.0,105240.0,0.2893096]
[1738238722297,0.91738547,105250.0,105240.0,0.2893096]
[1738238723809,0.91738547,105250.0,105240.0,0.0992426]
[1738238724304,0.94246547,105250.0,105240.0,0.2893106]
[1738238725214,0.71489627,105250.0,105240.0,0.2893106]
[1738238726410,0.68981627,105250.0,105240.0,0.2893106]
[1738238729305,0.80825898,105250.0,105240.0,0.357601]
[1738238735116,0.80825898,105250.0,105240.0,0.2893106]
[1738238735415,0.87654938,105250.0,105240.0,0.2893106]
[1738238736013,0.62000616,105250.0,105240.0,0.2893106]
[1738238736910,0.62000616,105250.0,105240.0,0.0992426]
[1738238738516,0.62000616,105250.0,105240.0,0.0663426]
[1738238741720,0.62000616,105250.0,105240.0,0.0332426]
[1738238743222,0.68829656,105250.0,105240.0,0.0021426]
[1738238743426,0.72109656,105250.0,105240.0,0.0021426]
[1738238743620,0.75199656,105250.0,105240.0,0.0021426]
[1738238746331,0.82181423,105250.0,105240.0,0.0021426]
[1738238747126,0.75352383,105250.0,105240.0,0.0021426]
[1738238747321,0.76301254,105250.0,105240.0,0.0021426]
[1738238748027,0.78809254,105250.0,105240.0,0.0021426]
[1738238749033,0.85638294,105250.0,105240.0,0.0021426]
[1738238753534,0.78809254,105250.0,105240.0,0.0021426]
[1738238754928,0.85638294,105250.0,105240.0,0.0021426]
[1738238755934,0.78809254,105250.0,105240.0,0.0021426]
[1738238756723,0.85638294,105250.0,105240.0,0.0021426]
[1738238759545,0.85638294,105250.0,105240.0,6e-07]
[1738238762840,0.190069,105240.0,105230.0,6.6e-07]
[1738238763038,0.7884402,105240.0,105230.0,6.6e-07]
[1738238764834,0.6518594,105240.0,105230.0,6.6e-07]
[1738238766031,0.72267707,105240.0,105230.0,6.6e-07]
[1738238771943,0.97386969,105240.0,105230.0,6.6e-07]
[1738238772152,0.97386969,105240.0,105230.0,0.06050066]
[1738238772353,1.06724009,105240.0,105230.0,0.06050066]
[1738238774041,0.97386969,105240.0,105230.0,0.06050066]
[1738238774242,1.06724009,105240.0,105230.0,0.06050066]
[1738238774442,0.99894969,105240.0,105230.0,0.06050066]
[1738238774637,0.97386969,105240.0,105230.0,0.12879106]
[1738238774839,0.99894969,105240.0,105230.0,0.06050066]
[1738238775746,0.97069983,105240.0,105230.0,0.06050066]
[1738238777241,0.90240943,105240.0,105230.0,0.12879106]
[1738238777650,0.87732943,105240.0,105230.0,0.12879106]
[1738238778056,0.87732943,105240.0,105230.0,0.31887806]
[1738238779553,0.51652943,105240.0,105230.0,0.67967806]
[1738238780049,0.191069,105240.0,105230.0,0.67967806]
[1738238780947,0.2593594,105240.0,105230.0,0.31887806]
[1738238781249,0.2593594,105240.0,105230.0,0.06050066]
[1738238782253,0.2593594,105240.0,105230.0,0.31887806]
[1738238782657,0.191069,105240.0,105230.0,0.71549483]
[1738238787556,0.001,105240.0,105230.0,0.74057483]
[1738238787744,0.0001426,105250.0,105240.0,0.190069]
[1738238788066,0.50230636,105260.0,105250.0,0.190051]
[1738238788360,0.50230636,105260.0,105250.0,0.35615817]
[1738238788949,0.50230636,105260.0,105250.0,0.252051]
[1738238789258,0.51130636,105260.0,105250.0,0.35615817]
[1738238789450,0.51130636,105260.0,105250.0,0.252051]
[1738238790056,0.51530636,105260.0,105250.0,0.252051]
[1738238790259,0.50630636,105260.0,105250.0,0.252051]
[1738238790556,0.50730636,105260.0,105250.0,0.252051]
[1738238790760,0.50430636,105260.0,105250.0,0.35615817]
[1738238791159,0.50430636,105260.0,105250.0,0.38935817]
[1738238792256,0.50430636,105260.0,105250.0,0.285251]
[1738238792758,0.192041,105260.0,105250.0,0.285251]
[1738238792959,0.192041,105260.0,105250.0,0.29486048]
[1738238793157,0.192041,105260.0,105250.0,0.39896765]
[1738238795253,0.192041,105260.0,105250.0,0.29486048]
[1738238804260,0.192041,105260.0,105250.0,0.39896765]
[1738238805563,0.190051,105250.0,105240.0,0.1902026]
[1738238806466,0.190051,105250.0,105240.0,0.30383541]
[1738238807065,0.191051,105250.0,105240.0,0.30683541]
[1738238808368,0.191051,105250.0,105240.0,0.30783541]
[1738238811267,0.191051,105250.0,105240.0,0.66863541]
[1738238811463,0.191051,105250.0,105240.0,0.30783541]
[1738238812471,0.191051,105250.0,105240.0,0.66863541]
[1738238813571,0.191051,105250.0,105240.0,0.30783541]
[1738238814372,0.191051,105250.0,105240.0,0.66863541]
[1738238814566,0.191051,105250.0,105240.0,0.30783541]
[1738238814765,0.191051,105250.0,105240.0,0.66863541]
[1738238816679,0.191051,105250.0,105240.0,0.63282644]
[1738238820990,0.191051,105250.0,105240.0,0.27202644]
[1738238821175,0.191051,105250.0,105240.0,0.70112464]
[1738238821574,0.191051,105250.0,105240.0,0.34032464]
[1738238821777,0.191051,105250.0,105240.0,0.70112464]
[1738238829080,0.001,105250.0,105240.0,0.70112464]
[1738238829277,0.191051,105250.0,105240.0,0.70112464]
[1738238830388,0.001,105250.0,105240.0,0.70112464]
[1738238831287,0.001,105250.0,105240.0,0.72620464]
[1738238834691,0.001,105250.0,105240.0,0.70112464]
[1738238834995,0.001,105250.0,105240.0,0.72620464]
[1738238850699,0.001,105250.0,105240.0,0.72616464]
[1738238851100,0.191051,105250.0,105240.0,0.72616464]
[1738238851502,0.191051,105250.0,105240.0,0.70112464]
[1738238851701,0.6201492,105250.0,105240.0,0.01366824]
[1738238851904,0.6512492,105250.0,105240.0,0.0041426]
[1738238852106,0.6762892,105250.0,105240.0,0.0041426]
[1738238852308,0.6762892,105250.0,105240.0,0.0724408]
[1738238853005,0.6512492,105250.0,105240.0,0.0724408]
[1738238853208,0.6762892,105250.0,105240.0,0.0724408]
[1738238853507,0.607991,105250.0,105240.0,0.0724408]
[1738238853705,0.6762892,105250.0,105240.0,0.0724408]
[1738238854208,0.607991,105250.0,105240.0,0.0724408]
[1738238857301,0.6777942,105250.0,105240.0,0.0724408]
[1738238858908,0.7460924,105250.0,105240.0,0.0724408]
[1738238859108,0.7460924,105250.0,105240.0,0.0041426]
[1738238860303,0.6762892,105250.0,105240.0,0.0041426]
[1738238866214,0.74610821,105250.0,105240.0,0.0041426]
[1738238870714,0.72106821,105250.0,105240.0,0.0041426]
[1738238870915,0.74610821,105250.0,105240.0,0.0041426]
[1738238872115,0.71500821,105250.0,105240.0,0.0041426]
[1738238872516,0.97094169,105250.0,105240.0,0.0041426]
[1738238875319,0.94590169,105250.0,105240.0,0.0041426]
[1738238875526,0.97094169,105250.0,105240.0,0.0041426]
[1738238876214,1.19848126,105250.0,105240.0,0.0041426]
[1738238876718,1.13018306,105250.0,105240.0,0.0724408]
[1738238877319,1.19848126,105250.0,105240.0,0.0724408]
[1738238877713,1.19848126,105250.0,105240.0,0.0041426]
[1738238877914,1.13018306,105250.0,105240.0,0.0724408]
[1738238879215,1.13018306,105250.0,105240.0,0.0041426]
[1738238879420,1.19848126,105250.0,105240.0,0.0041426]
[1738238880124,0.87272877,105250.0,105240.0,0.0041426]
[1738238881424,0.80443057,105250.0,105240.0,0.0041426]
[1738238882011,0.87272877,105250.0,105240.0,0.0041426]
[1738238883418,0.6451892,105250.0,105240.0,0.0041426]
[1738238885126,0.576891,105250.0,105240.0,0.0041426]
[1738238886020,0.6467063,105250.0,105240.0,0.0041426]
[1738238888933,0.576891,105250.0,105240.0,0.0041426]
[1738238889525,0.6451892,105250.0,105240.0,0.0041426]
[1738238889725,0.576891,105250.0,105240.0,0.0041426]
[1738238890827,0.6451892,105250.0,105240.0,0.0041426]
[1738238892034,0.97164499,105250.0,105240.0,0.0041426]
[1738238893231,0.90334679,105250.0,105240.0,0.0041426]
[1738238894341,0.97164499,105250.0,105240.0,0.0041426]
[1738238894643,0.90334679,105250.0,105240.0,0.0041426]
[1738238894836,0.87830679,105250.0,105240.0,0.0041426]
[1738238895139,0.90334679,105250.0,105240.0,0.0041426]
[1738238895540,1.13147275,105250.0,105240.0,0.0041426]
[1738238897542,1.10643275,105250.0,105240.0,0.1942116]
[1738238897749,1.10643275,105250.0,105240.0,0.2625098]
[1738238898950,0.87830679,105250.0,105240.0,0.2625098]
[1738238899351,0.87830679,105250.0,105240.0,0.330808]
[1738238899649,0.51750679,105250.0,105240.0,0.691608]
[1738238901852,0.191051,105250.0,105240.0,0.691608]
[1738238905361,0.6755493,105250.0,105240.0,0.691608]
[1738238907149,0.4854983,105250.0,105240.0,0.691608]
[1738238908059,0.22885781,105250.0,105240.0,0.691608]
[1738238911763,0.001,105250.0,105240.0,0.691608]
[1738238917367,0.191051,105250.0,105240.0,0.716648]
[1738238928072,0.191051,105250.0,105240.0,0.355848]
[1738238928960,0.191051,105250.0,105240.0,0.716648]
[1738238931768,0.191051,105250.0,105240.0,0.355848]
[1738238931962,0.191051,105250.0,105240.0,0.716648]